fUST/lending_fUST_20250928
["ID","MTS","AMOUNT","RATE_DAILY","PERIOD"]
[388073410,1759005040305,-480.0,0.00035616,9]
[388073412,1759005040315,-480.0,0.00035616,9]
[388073414,1759005040324,-480.0,0.00035616,9]
[388073416,1759005040333,-480.0,0.00035616,9]
[388073418,1759005040343,-518.1,0.00035616,9]
[388073420,1759005040352,-480.0,0.00035616,9]
[388073423,1759005040361,-720.57,0.00035616,9]
[388073424,1759005040371,-480.0,0.00035616,7]
[388073426,1759005040382,-650.55,0.00035616,9]
[388073428,1759005040391,-480.0,0.00035616,9]
[388073430,1759005040400,-480.0,0.00035616,9]
[388073433,1759005040410,-602.63797125,0.00035616,9]
[388073435,1759005040420,-480.0,0.00035616,9]
[388073437,1759005040429,-480.0,0.00035616,9]
[388073439,1759005040439,-480.89814689,0.00035616,9]
[388073441,1759005040448,-480.0,0.00035616,9]
[388073443,1759005040457,-480.0,0.00035616,9]
[388073445,1759005040467,-480.0,0.00035616,9]
[388073447,1759005040476,-240.6902799,0.00035616,9]
[388073449,1759005040486,-480.0,0.00035616,9]
[388073451,1759005040495,-480.0,0.00035616,9]
[388073453,1759005040504,-480.0,0.00035616,9]
[388073455,1759005040513,-601.12140561,0.00035616,9]
[388073457,1759005040523,-480.0,0.00035616,9]
[388073459,1759005040532,-480.0,0.00035616,9]
[388073461,1759005040541,-480.0,0.00035616,9]
[388073463,1759005040550,-480.0,0.00035616,9]
[388073465,1759005040560,-480.0,0.00035616,9]
[388073467,1759005040570,-480.0,0.00035616,9]
[388073469,1759005040579,-480.0,0.00035616,9]
[388073471,1759005040590,-480.0,0.00035616,9]
[388073473,1759005040599,-480.0,0.00035616,9]
[388073475,1759005040609,-480.0,0.00035616,9]
[388073477,1759005040618,-562.09,0.00035616,9]
[388073479,1759005040627,-483.06404042,0.00035616,9]
[388073481,1759005040636,-480.0,0.00035616,9]
[388073483,1759005040646,-480.0,0.00035616,9]
[388073485,1759005040655,-480.0,0.00035616,9]
[388073487,1759005040664,-611.75130681,0.00035616,9]
[388073489,1759005040674,-480.0,0.00035616,9]
[388073491,1759005040683,-480.0,0.00035616,9]
[388073493,1759005040693,-185.52765461,0.00035616,9]
[388073494,1759005040702,-480.0,0.00035616,9]
[388073495,1759005040712,-480.0,0.00035616,9]
[388073496,1759005040722,-480.0,0.00035616,9]
[388073497,1759005040731,-480.0,0.00035616,9]
[388073498,1759005040741,-484.19196987,0.00035616,2]
[388073499,1759005040750,-480.0,0.00035616,9]
[388073500,1759005040760,-480.0,0.00035616,9]
[388073501,1759005040769,-500.68579593,0.00035616,2]
[388073502,1759005040779,-480.0,0.00035616,9]
[388073503,1759005040788,-480.0,0.00035616,9]
[388073504,1759005040798,-480.0,0.00035616,9]
[388073505,1759005040807,-480.0,0.00035616,9]
[388073506,1759005040817,-480.0,0.00035616,9]
[388073507,1759005040827,-480.0,0.00035616,9]
[388073508,1759005040836,-480.0,0.00035616,9]
[388073509,1759005040846,-480.0,0.00035616,9]
[388073510,1759005040856,-480.0,0.00035616,9]
[388073511,1759005040865,-480.0,0.00035616,9]
[388073512,1759005040875,-480.0,0.00035616,9]
[388073513,1759005040884,-667.82,0.00035616,9]
[388073514,1759005040894,-1008.18,0.00035616,9]
[388073515,1759005040904,-480.0,0.00035616,9]
[388073516,1759005040913,-480.0,0.00035616,9]
[388073517,1759005040922,-1242.17,0.00035616,9]
[388073518,1759005040932,-530.23,0.00035616,9]
[388073519,1759005040941,-481.87579333,0.00035616,9]
[388073520,1759005040950,-625.70367343,0.00035616,9]
[388073521,1759005040960,-480.0,0.00035616,9]
[388073522,1759005040969,-480.0,0.00035616,9]
[388073523,1759005041023,-480.0,0.00035616,9]
[388073524,1759005041033,-480.0,0.00035616,9]
[388073525,1759005041042,-480.0,0.00035616,9]
[388073526,1759005041051,-480.0,0.00035616,9]
[388073527,1759005041060,-480.0,0.00035616,9]
[388073528,1759005041069,-480.0,0.00035616,9]
[388073529,1759005041079,-168.635042,0.00035616,7]
[388073530,1759005041088,-480.0,0.00035616,9]
[388073531,1759005041098,-500.0,0.00035616,9]
[388073532,1759005041107,-168.635042,0.00035616,7]
[388073533,1759005041116,-500.0,0.00035616,9]
[388073534,1759005041130,-168.635042,0.00035616,7]
[388073535,1759005041140,-500.0,0.00035616,9]
[388073536,1759005041149,-168.635042,0.00035616,7]
[388073537,1759005041159,-500.0,0.00035616,9]
[388073538,1759005041168,-550.66502579,0.00035616,9]
[388073539,1759005041177,-168.635042,0.00035616,7]
[388073540,1759005041187,-481.01392555,0.00035616,9]
[388073541,1759005041196,-168.635042,0.00035616,7]
[388073542,1759005041205,-168.635042,0.00035616,7]
[388073543,1759005041214,-168.635042,0.00035616,7]
[388073544,1759005041225,-168.635042,0.00035616,7]
[388073545,1759005041235,-168.635042,0.00035616,7]
[388073546,1759005041244,-168.635042,0.00035616,7]
[388073547,1759005041253,-168.635042,0.00035616,7]
[388073548,1759005041262,-168.635042,0.00035616,7]
[388073549,1759005041272,-168.635042,0.00035616,7]
[388073550,1759005041281,-168.635042,0.00035616,7]
[388073551,1759005041291,-168.635045,0.00035616,7]
[388073552,1759005041300,-225.30129456,0.00035616,9]
[388073553,1759005041309,-825.25,0.00035616,9]
[388073554,1759005041318,-175.49809788,0.00035616,9]
[388073555,1759005041328,-480.0,0.00035616,9]
[388073556,1759005041337,-480.0,0.00035616,9]
[388073557,1759005041347,-151.0,0.00035616,7]
[388073558,1759005041357,-151.0,0.00035616,7]
[388073559,1759005041366,-151.0,0.00035616,7]
[388073560,1759005041376,-151.0,0.00035616,7]
[388073561,1759005041385,-284.450306,0.00035616,7]
[388073562,1759005041394,-480.0,0.00035616,9]
[388073563,1759005041402,-480.0,0.00035616,9]
[388073564,1759005041412,-480.0,0.00035616,9]
[388073565,1759005041421,-480.0,0.00035616,9]
[388073566,1759005041430,-480.0,0.00035616,9]
[388073567,1759005041439,-151.0,0.00035616,7]
[388073568,1759005041449,-480.0,0.00035616,9]
[388073569,1759005041458,-151.0,0.00035616,7]
[388073570,1759005041467,-151.0,0.00035616,7]
[388073571,1759005041476,-480.0,0.00035616,9]
[388073572,1759005041485,-151.0,0.00035616,7]
[388073573,1759005041495,-151.0,0.00035616,7]
[388073574,1759005041508,-480.0,0.00035616,7]
[388073575,1759005041517,-481.73964426,0.00035616,9]
[388073576,1759005041527,-151.0,0.00035616,7]
[388073577,1759005041537,-480.0,0.00035616,9]
[388073578,1759005041547,-151.0,0.00035616,7]
[388073579,1759005041556,-151.0,0.00035616,7]
[388073580,1759005041566,-151.0,0.00035616,7]
[388073581,1759005041576,-480.0,0.00035616,9]
[388073582,1759005041586,-480.0,0.00035616,9]
[388073583,1759005041595,-168.64862636,0.00035616,9]
[388073584,1759005041604,-500.0,0.00035616,13]
[388073585,1759005041613,-480.0,0.00035616,9]
[388073586,1759005041622,-480.0,0.00035616,9]
[388073587,1759005041631,-480.0,0.00035616,9]
[388073588,1759005041640,-506.02418976,0.00035616,9]
[388073589,1759005041649,-480.0,0.00035616,9]
[388073590,1759005041658,-480.0,0.00035616,9]
[388073591,1759005041668,-482.68872355,0.00035616,9]
[388073592,1759005041677,-480.0,0.00035616,9]
[388073593,1759005041686,-480.0,0.00035616,9]
[388073594,1759005041695,-480.0,0.00035616,9]
[388073595,1759005041705,-480.0,0.00035616,9]
[388073596,1759005041714,-1128.56,0.00035616,9]
[388073597,1759005041723,-395.00423328,0.00035616,9]
[388073598,1759005041733,-480.0,0.00035616,9]
[388073599,1759005041742,-480.0,0.00035616,9]
[388073600,1759005041752,-480.0,0.00035616,9]
[388073601,1759005041761,-480.0,0.00035616,9]
[388073602,1759005041770,-480.0,0.00035616,9]
[388073603,1759005041780,-503.10094521,0.00035616,13]
[388073604,1759005041789,-480.0,0.00035616,9]
[388073605,1759005041798,-480.0,0.00035616,9]
[388073606,1759005041808,-480.0,0.00035616,9]
[388073607,1759005041817,-480.0,0.00035616,9]
[388073608,1759005041826,-480.0,0.00035616,9]
[388073609,1759005041835,-480.0,0.00035616,9]
[388073610,1759005041844,-151.0,0.00035616,7]
[388073611,1759005041853,-480.0,0.00035616,9]
[388073612,1759005041862,-345.34545128,0.00035616,9]
[388073613,1759005041871,-602.98614381,0.00035616,9]
[388073614,1759005041880,-480.0,0.00035616,9]
[388073615,1759005041889,-480.0,0.00035616,9]
[388073616,1759005041898,-480.0,0.00035616,9]
[388073617,1759005041908,-592.2,0.00035616,9]
[388073618,1759005041917,-480.0,0.00035616,9]
[388073619,1759005041926,-151.0,0.00035616,7]
[388073620,1759005041935,-151.0,0.00035616,7]
[388073621,1759005041944,-151.0,0.00035616,7]
[388073622,1759005041953,-151.0,0.00035616,7]
[388073623,1759005041962,-480.0,0.00035616,9]
[388073624,1759005041971,-480.0,0.00035616,9]
[388073625,1759005041980,-480.0,0.00035616,9]
[388073626,1759005041990,-480.0,0.00035616,9]
[388073627,1759005041999,-480.0,0.00035616,9]
[388073628,1759005042008,-151.0,0.00035616,7]
[388073629,1759005042017,-174.78584,0.00035616,7]
[388073630,1759005042027,-491.39862136,0.00035616,9]
[388073631,1759005042037,-480.0,0.00035616,9]
[388073632,1759005042046,-480.0,0.00035616,9]
[388073633,1759005042055,-480.0,0.00035616,9]
[388073634,1759005042064,-840.41,0.00035616,9]
[388073635,1759005042074,-480.0,0.00035616,9]
[388073636,1759005042083,-480.0,0.00035616,9]
[388073637,1759005042092,-480.0,0.00035616,9]
[388073638,1759005042103,-480.0,0.00035616,9]
[388073639,1759005042112,-600.0,0.00035616,9]
[388073640,1759005042121,-480.0,0.00035616,9]
[388073641,1759005042130,-480.0,0.00035616,9]
[388073642,1759005042139,-480.0,0.00035616,9]
[388073643,1759005042149,-480.0,0.00035616,9]
[388073644,1759005042158,-480.0,0.00035616,9]
[388073645,1759005042167,-480.0,0.00035616,9]
[388073646,1759005042176,-480.0,0.00035616,9]
[388073647,1759005042185,-480.0,0.00035616,9]
[388073648,1759005042194,-480.0,0.00035616,9]
[388073649,1759005042203,-480.0,0.00035616,9]
[388073650,1759005042212,-151.0,0.00035616,7]
[388073651,1759005042221,-151.0,0.00035616,7]
[388073652,1759005042230,-151.0,0.00035616,7]
[388073653,1759005042239,-853.89,0.00035616,9]
[388073654,1759005042248,-151.0,0.00035616,7]
[388073655,1759005042257,-151.0,0.00035616,7]
[388073656,1759005042266,-151.0,0.00035616,7]
[388073657,1759005042275,-151.0,0.00035616,7]
[388073658,1759005042284,-251.638792,0.00035616,7]
[388073659,1759005042294,-480.0,0.00035616,9]
[388073660,1759005042303,-480.0,0.00035616,9]
[388073661,1759005042312,-661.5,0.00035616,9]
[388073662,1759005042321,-380.51874423,0.00035616,9]
[388073663,1759005042330,-480.0,0.00035616,9]
[388073665,1759005042339,-152.251034,0.00035616,7]
[388073667,1759005042348,-480.0,0.00035616,9]
[388073668,1759005042357,-480.0,0.00035616,9]
[388073670,1759005042367,-480.0,0.00035616,9]
[388073672,1759005042376,-480.0,0.00035616,9]
[388073674,1759005042385,-480.0,0.00035616,9]
[388073676,1759005042394,-480.0,0.00035616,9]
[388073678,1759005042403,-480.0,0.00035616,9]
[388073680,1759005042412,-452.89308694,0.00035616,9]
[388073684,1759005042441,-27.10691306,0.00035616,9]
[388073686,1759005042450,-480.0,0.00035616,9]
[388073688,1759005042460,-480.0,0.00035616,9]
[388073691,1759005042469,-480.0,0.00035616,9]
[388073694,1759005042479,-480.0,0.00035616,9]
[388073697,1759005042487,-227.22773625,0.00035616,9]
[388073699,1759005042496,-755.93,0.00035616,9]
[388073701,1759005042506,-458.30813851,0.00035616,9]
[388073704,1759005042521,-21.69186149,0.00035616,9]
[388073705,1759005042531,-480.0,0.00035616,9]
[388073706,1759005042540,-480.0,0.00035616,9]
[388073707,1759005042549,-466.71868832,0.00035616,9]
[388073708,1759005042560,-13.28131168,0.00035616,9]
[388073709,1759005042570,-480.0,0.00035616,9]
[388073710,1759005042579,-480.0,0.00035616,9]
[388073711,1759005042588,-480.45,0.00035616,9]
[388073712,1759005042597,-480.0,0.00035616,9]
[388073713,1759005042607,-480.0,0.00035616,9]
[388073714,1759005042615,-480.0,0.00035616,9]
[388073715,1759005042624,-704.07,0.00035616,9]
[388073716,1759005042634,-151.0,0.00035616,7]
[388073717,1759005042643,-151.0,0.00035616,7]
[388073718,1759005042652,-151.0,0.00035616,7]
[388073719,1759005042661,-151.0,0.00035616,7]
[388073720,1759005042670,-151.0,0.00035616,7]
[388073721,1759005042679,-232.15078335,0.00035616,7]
[388073722,1759005042688,-480.0,0.00035616,9]
[388073723,1759005042697,-158.89749025,0.00035616,9]
[388073724,1759005042709,-321.10250975,0.00035616,9]
[388073725,1759005042719,-151.0,0.00035616,7]
[388073726,1759005042728,-151.0,0.00035616,7]
[388073728,1759005042737,-151.0,0.00035616,7]
[388073729,1759005042745,-480.0,0.00035616,9]
[388073731,1759005042754,-480.0,0.00035616,9]
[388073733,1759005042762,-480.0,0.00035616,9]
[388073735,1759005042770,-480.0,0.00035616,9]
[388073737,1759005042778,-753.49749025,0.00035616,9]
[388073739,1759005042796,-48.53250975,0.00035616,9]
[388073740,1759005042804,-674.39,0.00035616,9]
[388073742,1759005042814,-487.84742232,0.00035616,9]
[388073743,1759005042822,-480.0,0.00035616,9]
[388073744,1759005042832,-480.0,0.00035616,9]
[388073745,1759005042840,-480.0,0.00035616,9]
[388073746,1759005042850,-480.0,0.00035616,9]
[388073747,1759005042859,-869.67,0.00035616,9]
[388073748,1759005042869,-1499.03,0.00035616,9]
[388073749,1759005042878,-480.0,0.00035616,9]
[388073750,1759005042887,-480.0,0.00035616,9]
[388073751,1759005042896,-1344.94,0.00035616,9]
[388073752,1759005042905,-480.0,0.00035616,9]
[388073753,1759005042914,-480.0,0.00035616,9]
[388073754,1759005042923,-480.0,0.00035616,9]
[388073755,1759005042932,-480.0,0.00035616,9]
[388073756,1759005042941,-489.92318404,0.00035616,9]
[388073757,1759005042951,-480.0,0.00035616,9]
[388073758,1759005042960,-700.83,0.00035616,9]
[388073759,1759005042969,-151.0,0.00035616,7]
[388073760,1759005042980,-151.0,0.00035616,7]
[388073761,1759005042989,-151.0,0.00035616,7]
[388073762,1759005042998,-480.0,0.00035616,9]
[388073763,1759005043008,-480.0,0.00035616,9]
[388073764,1759005043017,-725.07,0.00035616,9]
[388073765,1759005043028,-89.16751099,0.00035616,9]
[388073766,1759005043041,-390.83248901,0.00035616,9]
[388073767,1759005043051,-480.0,0.00035616,9]
[388073769,1759005043060,-310.51289206,0.00035616,9]
[388073770,1759005043072,-169.48710794,0.00035616,9]
[388073771,1759005043081,-334.83307511,0.00035616,9]
[388073772,1759005043093,-497.27692489,0.00035616,9]
[388073773,1759005043103,-480.0,0.00035616,9]
[388073774,1759005043113,-879.95082476,0.00035616,9]
[388073775,1759005043125,-205.38917524,0.00035616,9]
[388073776,1759005043136,-480.0,0.00035616,9]
[388073777,1759005043146,-480.0,0.00035616,9]
[388073778,1759005043155,-562.48,0.00035616,9]
[388073779,1759005043165,-1000.0,0.00035616,9]
[388073780,1759005043174,-480.0,0.00035616,9]
[388073781,1759005043184,-480.0,0.00035616,9]
[388073782,1759005043193,-480.0,0.00035616,9]
[388073783,1759005043203,-480.0,0.00035616,9]
[388073784,1759005043212,-512.41,0.00035616,9]
[388073785,1759005043222,-736.13,0.00035616,9]
[388073786,1759005043231,-480.0,0.00035616,9]
[388073787,1759005043241,-153.085883,0.00035616,7]
[388073788,1759005043250,-480.0,0.00035616,9]
[388073789,1759005043260,-906.77,0.00035616,9]
[388073790,1759005043270,-480.0,0.00035616,9]
[388073791,1759005043279,-104.29617839,0.00035616,2]
[388073792,1759005043599,-60.32382161,0.00035616,2]
[388073793,1759005043609,-480.0,0.00035616,9]
[388073794,1759005043618,-151.0,0.00035616,7]
[388073795,1759005043628,-3529.2,0.00035616,9]
[388073796,1759005043637,-480.0,0.00035616,9]
[388073797,1759005043647,-940.77,0.00035616,9]
[388073798,1759005043656,-480.0,0.00035616,9]
[388073799,1759005043666,-480.0,0.00035616,9]
[388073800,1759005043675,-480.0,0.00035616,9]
[388073801,1759005043684,-480.0,0.00035616,9]
[388073802,1759005043693,-480.0,0.00035616,9]
[388073803,1759005043702,-500.0,0.00035616,9]
[388073804,1759005043711,-151.0,0.00035616,7]
[388073805,1759005043721,-202.57348529,0.00035616,9]
[388073806,1759005043730,-480.0,0.00035616,9]
[388073807,1759005043740,-480.0,0.00035616,9]
[388073808,1759005043749,-480.0,0.00035616,9]
[388073809,1759005043759,-480.0,0.00035616,9]
[388073810,1759005043768,-193.82621237,0.00035616,9]
[388073811,1759005043780,-306.17378763,0.00035616,9]
[388073812,1759005043790,-296.4419098,0.00035616,9]
[388073813,1759005043801,-203.5580902,0.00035616,9]
[388073814,1759005043810,-598.38,0.00035616,9]
[388073815,1759005043820,-480.0,0.00035616,9]
[388073816,1759005043829,-500.0,0.00035616,9]
[388073817,1759005043838,-271.41491125,0.00035616,9]
[388073818,1759005043848,-628.43,0.00035616,9]
[388073819,1759005043857,-494.75377499,0.00035616,9]
[388073820,1759005043866,-480.0,0.00035616,9]
[388073821,1759005043875,-151.0,0.00035616,7]
[388073822,1759005043884,-151.0,0.00035616,7]
[388073823,1759005043894,-154.249772,0.00035616,7]
[388073824,1759005043904,-480.0,0.00035616,9]
[388073825,1759005043913,-480.0,0.00035616,9]
[388073826,1759005043923,-480.0,0.00035616,9]
[388073827,1759005043933,-708.41,0.00035616,9]
[388073828,1759005043943,-480.0,0.00035616,9]
[388073829,1759005043954,-151.0,0.00035616,7]
[388073830,1759005043963,-480.0,0.00035616,9]
[388073831,1759005043973,-243.71168359,0.00035616,9]
[388073832,1759005043986,-236.28831641,0.00035616,9]
[388073833,1759005043996,-480.0,0.00035616,9]
[388073834,1759005044005,-480.0,0.00035616,9]
[388073835,1759005044015,-480.0,0.00035616,9]
[388073836,1759005044025,-480.0,0.00035616,9]
[388073837,1759005044034,-480.0,0.00035616,9]
[388073838,1759005044044,-615.4,0.00035616,9]
[388073839,1759005044053,-500.0,0.00035616,9]
[388073840,1759005044063,-500.0,0.00035616,9]
[388073841,1759005044072,-500.0,0.00035616,9]
[388073842,1759005044082,-500.0,0.00035616,9]
[388073843,1759005044091,-500.0,0.00035616,9]
[388073844,1759005044101,-480.0,0.00035616,9]
[388073845,1759005044111,-500.0,0.00035616,9]
[388073846,1759005044120,-500.0,0.00035616,9]
[388073847,1759005044130,-500.0,0.00035616,9]
[388073848,1759005044139,-206.94331665,0.00035616,9]
[388073849,1759005044149,-480.0,0.00035616,9]
[388073850,1759005044158,-480.0,0.00035616,9]
[388073851,1759005044168,-480.0,0.00035616,9]
[388073852,1759005044177,-774.03,0.00035616,9]
[388073853,1759005044187,-480.0,0.00035616,9]
[388073854,1759005044197,-480.0,0.00035616,9]
[388073855,1759005044207,-480.0,0.00035616,9]
[388073856,1759005044217,-714.26,0.00035616,9]
[388073857,1759005044227,-714.26,0.00035616,9]
[388073858,1759005044239,-714.26,0.00035616,9]
[388073859,1759005044249,-983.17,0.00035616,9]
[388073860,1759005044260,-714.26,0.00035616,9]
[388073861,1759005044269,-1469.43,0.00035616,9]
[388073862,1759005044279,-714.26,0.00035616,9]
[388073863,1759005044288,-480.0,0.00035616,9]
[388073864,1759005044297,-714.26,0.00035616,9]
[388073865,1759005044307,-714.26,0.00035616,9]
[388073866,1759005044316,-714.26,0.00035616,9]
[388073867,1759005044326,-714.26,0.00035616,9]
[388073868,1759005044336,-714.26,0.00035616,9]
[388073869,1759005044346,-714.26,0.00035616,9]
[388073870,1759005044355,-1634.99,0.00035616,9]
[388073871,1759005044365,-714.26,0.00035616,9]
[388073872,1759005044375,-714.26,0.00035616,9]
[388073873,1759005044385,-480.0,0.00035616,9]
[388073874,1759005044394,-714.26,0.00035616,9]
[388073875,1759005044404,-714.26,0.00035616,9]
[388073876,1759005044414,-714.26,0.00035616,9]
[388073877,1759005044423,-714.26,0.00035616,9]
[388073878,1759005044433,-714.26,0.00035616,9]
[388073879,1759005044443,-714.26,0.00035616,9]
[388073880,1759005044453,-714.26,0.00035616,9]
[388073881,1759005044463,-714.26,0.00035616,9]
[388073882,1759005044472,-714.26,0.00035616,9]
[388073883,1759005044482,-714.26,0.00035616,9]
[388073884,1759005044492,-561.3,0.00035616,9]
[388073885,1759005044502,-714.3122281,0.00035616,9]
[388073886,1759005044513,-480.0,0.00035616,9]
[388073887,1759005044523,-240.74930933,0.00035616,9]
[388073888,1759005044538,-391.27069067,0.00035616,9]
[388073889,1759005044548,-480.0,0.00035616,9]
[388073890,1759005044558,-480.0,0.00035616,9]
[388073891,1759005044567,-480.0,0.00035616,9]
[388073892,1759005044577,-480.0,0.00035616,9]
[388073893,1759005044587,-480.0,0.00035616,9]
[388073894,1759005044596,-965.48,0.00035616,9]
[388073895,1759005044606,-480.0,0.00035616,9]
[388073896,1759005044616,-480.0,0.00035616,9]
[388073897,1759005044626,-487.87536575,0.00035616,9]
[388073898,1759005044636,-597.88973424,0.00035616,9]
[388073899,1759005044648,-328.57026576,0.00035616,9]
[388073900,1759005044658,-1109.78,0.00035616,9]
[388073901,1759005044668,-480.0,0.00035616,9]
[388073902,1759005044677,-480.0,0.00035616,9]
[388073903,1759005044687,-492.0847084,0.00035616,9]
[388073904,1759005044697,-480.0,0.00035616,9]
[388073905,1759005044706,-480.0,0.00035616,9]
[388073906,1759005044716,-480.0,0.00035616,9]
[388073907,1759005044726,-480.0,0.00035616,9]
[388073908,1759005044737,-520.0,0.00035616,3]
[388073909,1759005044746,-512.34,0.00035616,9]
[388073910,1759005044756,-480.0,0.00035616,9]
[388073911,1759005044766,-1056.38,0.00035616,9]
[388073912,1759005044776,-1029.98,0.00035616,9]
[388073913,1759005044786,-480.0,0.00035616,9]
[388073914,1759005044795,-480.0,0.00035616,9]
[388073915,1759005044805,-1112.52,0.00035616,9]
[388073916,1759005044815,-480.0,0.00035616,9]
[388073917,1759005044825,-480.0,0.00035616,9]
[388073918,1759005044835,-480.0,0.00035616,9]
[388073919,1759005044844,-382.59464717,0.00035616,9]
[388073920,1759005044856,-99.61535283,0.00035616,9]
[388073921,1759005044866,-480.0,0.00035616,9]
[388073922,1759005044876,-480.0,0.00035616,9]
[388073923,1759005044885,-480.0,0.00035616,9]
[388073924,1759005044895,-1341.11,0.00035616,9]
[388073925,1759005044905,-480.0,0.00035616,9]
[388073926,1759005044914,-480.0,0.00035616,9]
[388073927,1759005044924,-480.0,0.00035616,9]
[388073928,1759005044934,-480.0,0.00035616,9]
[388073929,1759005044944,-481.21245939,0.00035616,9]
[388073930,1759005044954,-480.0,0.00035616,9]
[388073931,1759005044964,-480.0,0.00035616,9]
[388073932,1759005044974,-480.0,0.00035616,7]
[388073933,1759005044984,-480.0,0.00035616,9]
[388073934,1759005044994,-151.0,0.00035616,7]
[388073935,1759005045004,-151.0,0.00035616,7]
[388073936,1759005045015,-480.0,0.00035616,9]
[388073937,1759005045026,-151.0,0.00035616,7]
[388073938,1759005045037,-480.0,0.00035616,9]
[388073939,1759005045046,-152.397625,0.00035616,7]
[388073940,1759005045056,-545.9,0.00035616,9]
[388073941,1759005045066,-480.0,0.00035616,9]
[388073942,1759005045075,-480.0,0.00035616,9]
[388073943,1759005045085,-480.0,0.00035616,9]
[388073944,1759005045094,-480.0,0.00035616,9]
[388073945,1759005045104,-480.0,0.00035616,9]
[388073946,1759005045113,-151.0,0.00035616,7]
[388073947,1759005045123,-151.0,0.00035616,7]
[388073948,1759005045133,-4887.58808079,0.00035616,9]
[388073949,1759005045145,-1568.65191921,0.00035616,9]
[388073950,1759005045155,-151.0,0.00035616,7]
[388073951,1759005045164,-151.0,0.00035616,7]
[388073952,1759005045174,-20.90191939,0.00035616,7]
[388073953,1759005045193,-130.09808061,0.00035616,7]
[388073954,1759005045202,-151.0,0.00035616,7]
[388073955,1759005045211,-441.17852304,0.00035616,9]
[388073956,1759005045223,-38.82147696,0.00035616,9]
[388073957,1759005045233,-151.0,0.00035616,7]
[388073958,1759005045245,-480.0,0.00035616,9]
[388073959,1759005045255,-151.0,0.00035616,7]
[388073960,1759005045264,-151.0,0.00035616,7]
[388073961,1759005045274,-151.0,0.00035616,7]
[388073962,1759005045283,-16.63956994,0.00035616,7]
[388073964,1759005045903,-453.90998057,0.00028988,2]
[388073965,1759005045997,-246.28218742,0.00028988,2]
[388073966,1759005046009,-782.28,0.00028988,2]
[388073988,1759005046269,-570.5799999,0.00028988,2]
[388074005,1759005142221,5000.0,0.00025205,2]
[388074006,1759005222403,185.0,0.00024822,14]
[388074010,1759005534758,157.0,0.00024822,14]
[388074020,1759005889840,-154.11092381,0.000253,2]
[388074021,1759005889862,-143.90996069,0.00027842,30]
[388074022,1759005892168,-480.0,0.00027842,30]
[388074023,1759005894809,-376.09003931,0.00027842,30]
[388074024,1759005894830,-103.90996069,0.0002876,2]
[388074025,1759005897215,-55.34509221,0.0002876,2]
[388074026,1759005897237,-300.0,0.00028851,2]
[388074027,1759005897260,-345.50490779,0.00028851,2]
[388074028,1759005899426,-154.49509221,0.00028851,2]
[388074029,1759005899463,-500.0,0.00028851,2]
[388074030,1759005899489,-9.83632341,0.00028851,2]
[388074031,1759005901000,-490.16367659,0.00028851,2]
[388074032,1759005901023,-19.67264682,0.00028851,2]